bitfinex-derivatives/quotes_ETHF0:USTF0_20250329
["timestamp","ask_amount","ask_price","bid_price","bid_amount"]
[1743207319303,3.21838,1903.6,1903.5,1.19283761]
[1743207319491,3.21838,1903.6,1903.5,1.92933761]
[1743207322810,8.0052,1903.6,1903.1,0.00789245]
[1743207322999,1.0518,1902.4,1902.3,1.68356733]
[1743207323401,1.05186,1902.3,1902.2,16.40325607]
[1743207323998,2.39386,1902.3,1902.2,16.40325607]
[1743207324798,3.05244949,1902.3,1902.2,16.40325607]
[1743207325510,3.50530413,1902.3,1902.2,16.40325607]
[1743207325903,1.05191,1902.2,1902.1,0.00789245]
[1743207326209,2.48241,1902.2,1902.1,0.00789245]
[1743207327307,0.72029245,1902.4,1902.1,3.21569245]
[1743207327500,3.20263245,1902.4,1902.2,1.3669]
[1743207328610,1.05186,1902.3,1902.2,1.3669]
[1743207329207,3.20262245,1902.4,1902.2,1.3669]
[1743207329509,1.05186,1902.3,1902.2,1.3669]
[1743207331110,2.15079245,1902.4,1902.2,1.3669]
[1743207331111,0.00789245,1902.4,1902.3,1.05186]
[1743207331306,0.00789245,1902.4,1902.3,4.25966]
[1743207331906,0.00789245,1902.4,1902.3,4.94966]
[1743207335007,0.00789245,1902.4,1902.3,3.8978]
[1743207335312,1.05969245,1902.4,1902.3,4.94966]
[1743207335610,1.05969245,1902.4,1902.3,3.8978]
[1743207335805,1.05969245,1902.4,1902.3,3.2078]
[1743207336801,1.05969245,1902.4,1902.2,2.41881]
[1743207336999,1.4249,1902.3,1902.2,2.41881]
[1743207337606,2.47676,1902.3,1902.2,1.3669]
[1743207337909,1.4249,1902.3,1902.2,2.41881]
[1743207338607,2.47676,1902.3,1902.2,1.3669]
[1743207339313,1.05191,1902.2,1902.1,0.00789245]
[1743207339512,2.39281,1902.2,1902.1,1.38499245]
[1743207339709,1.3409,1902.2,1902.1,4.59279245]
[1743207339914,2.39281,1902.2,1902.1,4.59279245]
[1743207340817,2.39281,1902.2,1902.1,5.64476245]
[1743207341010,2.39281,1902.2,1902.1,4.59279245]
[1743207341517,2.39281,1902.2,1902.1,5.64476245]
[1743207341518,1.3409,1902.2,1902.1,5.64476245]
[1743207341814,2.39281,1902.2,1902.1,4.59279245]
[1743207344419,2.39281,1902.2,1902.1,0.00789245]
[1743207349122,1.05214,1901.8,1901.7,1.4625]
[1743207349520,1.05219,1901.7,1901.6,3.2078]
[1743207349722,2.50299,1901.7,1901.6,3.2078]
[1743207351219,1.05225,1901.6,1901.5,0.00789245]
[1743207351418,3.12235,1901.6,1901.5,0.00789245]
[1743207352626,3.56122928,1901.6,1901.5,0.00789245]
[1743207355628,3.56122928,1901.6,1901.5,1.34549245]
[1743207356129,3.12235,1901.6,1901.5,1.34549245]
[1743207358327,1.3799,1901.6,1901.5,2.39779245]
[1743207358524,0.7214,1901.9,1901.5,1.34549245]
[1743207358730,1.4676,1901.8,1901.7,1.05219]
[1743207358932,1.4676,1901.8,1901.7,2.1688]
[1743207359324,2.51974,1901.8,1901.7,2.1688]
[1743207361948,1.05223,1901.7,1901.5,1.76448245]
[1743207362245,2.41293,1901.7,1901.6,1.3344]
[1743207367645,0.00789245,1902.4,1901.6,19.10281]
[1743207367847,0.00789245,1902.4,1902.3,1.05186]
[1743207368050,0.00789245,1902.4,1902.3,3.18946]
[1743207368545,0.00789245,1902.4,1902.3,2.1376]
[1743207369258,0.00789245,1902.4,1902.3,3.18946]
[1743207369548,1.05969245,1902.4,1902.3,2.1376]
[1743207369749,2.53109245,1902.4,1902.3,2.1376]
[1743207369947,2.53109245,1902.4,1902.3,0.6731]
[1743207370150,1.05186,1902.3,1902.2,3.2078]
[1743207370348,2.52326,1902.3,1902.2,3.2078]
[1743207370752,2.52326,1902.3,1902.2,4.5904]
[1743207372658,1.4714,1902.3,1902.2,4.5904]
[1743207373154,2.52326,1902.3,1902.2,4.5904]
[1743207373457,1.05191,1902.2,1902.1,0.7027]
[1743207373658,1.05191,1902.2,1902.1,2.0494]
[1743207373659,3.11661,1902.2,1902.1,2.0494]
[1743207375259,1.05186,1902.3,1902.1,3.10137]
[1743207375456,1.39719245,1902.4,1902.3,1.05186]
[1743207375650,0.00789245,1902.4,1902.3,1.05186]
[1743207375850,1.05969245,1902.4,1902.2,2.40148]
[1743207376051,1.05969245,1902.4,1902.3,1.3496]
[1743207377865,0.00789245,1902.4,1902.3,2.40146]
[1743207378258,1.05969245,1902.4,1902.3,1.3496]
[1743207379460,0.00789245,1902.4,1902.3,2.40146]
[1743207379660,1.05969245,1902.4,1902.3,2.40146]
[1743207379854,0.00789245,1902.4,1902.3,2.40146]
[1743207380665,1.05969245,1902.4,1902.3,2.40146]
[1743207380861,0.00789245,1902.4,1902.3,2.40146]
[1743207381062,1.05969245,1902.4,1902.3,1.3496]
[1743207381360,1.44749245,1902.4,1902.3,2.40146]
[1743207385466,1.44749245,1902.4,1902.3,3.11926]
[1743207385467,0.00789245,1902.4,1902.3,3.11926]
[1743207386664,3.2078,1902.8,1902.7,1.05164]
[1743207386665,1.3751,1902.8,1902.7,1.05164]
[1743207386866,1.3751,1902.8,1902.7,4.25944]
[1743207387874,1.3751,1902.8,1902.7,5.69574]
[1743207389367,2.42668,1902.8,1902.7,4.6441]
[1743207389571,2.42668,1902.8,1902.7,1.4363]
[1743207389780,2.42668,1902.8,1902.7,4.6441]
[1743207389979,2.42668,1902.8,1902.7,1.4363]
[1743207390273,2.42668,1902.8,1902.7,4.6441]
[1743207397476,2.42668,1902.8,1902.7,3.2078]
[1743207397674,3.10648,1902.8,1902.7,3.2078]
[1743207399282,1.05164,1902.7,1902.6,0.00789245]
[1743207399482,2.41244,1902.7,1902.6,0.00789245]
[1743207402877,2.41244,1902.7,1902.6,1.05958245]
[1743207402878,1.3608,1902.7,1902.6,1.05958245]
[1743207403079,0.68969245,1902.9,1902.8,1.05158]
[1743207403286,2.12359245,1902.9,1902.8,1.05158]
[1743207403585,1.44179245,1902.9,1902.8,1.05158]
[1743207403883,1.44179245,1902.9,1902.8,2.40838]
[1743207405975,1.44179245,1902.9,1902.8,5.61618]
[1743207408392,0.00789245,1902.9,1902.8,5.61618]
[1743207410187,1.05942245,1902.9,1902.8,3.8765]
[1743207410385,0.00789245,1902.9,1902.8,6.28418]
[1743207410881,1.43859245,1902.9,1902.8,6.28418]
[1743207415088,0.00789245,1902.9,1902.8,6.28418]
[1743207417985,0.00789245,1902.9,1902.8,8.78418]
[1743207418188,3.2078,1903.4,1903.3,1.05131]
[1743207418392,4.25905,1903.4,1903.3,1.05131]
[1743207418592,5.63905,1903.4,1903.3,1.05131]
[1743207418993,4.5878,1903.4,1903.3,1.05131]
[1743207419497,5.63909,1903.4,1903.2,1.77224]
[1743207419692,4.25909,1903.4,1903.3,1.4169]
[1743207420899,1.05129,1903.4,1903.3,1.4169]
[1743207422301,1.05129,1903.4,1903.3,2.46821]
[1743207422500,1.05125,1903.4,1903.3,2.46819]
[1743207423403,1.75894,1903.5,1903.3,2.46819]
[1743207423702,1.75894,1903.5,1903.4,1.4208]
[1743207423901,0.7077,1903.5,1903.4,2.47205]
[1743207424092,1.0511,1903.7,1903.4,1.4208]
[1743207424287,0.7124,1903.7,1903.4,1.4208]
[1743207424499,1.05116,1903.6,1903.4,5.67981]
[1743207424694,1.05116,1903.6,1903.5,1.3959]
[1743207425604,0.7124,1903.7,1903.5,2.4471]
[1743207425605,1.76352,1903.7,1903.5,2.4471]
[1743207425903,0.7124,1903.7,1903.5,1.3959]
[1743207426102,1.05114,1903.6,1903.5,1.3959]
[1743207428407,1.76352,1903.7,1903.5,2.44708]
[1743207428707,0.7124,1903.7,1903.5,2.44708]
[1743207429307,1.76353,1903.7,1903.5,2.44708]
[1743207430302,1.05114,1903.6,1903.5,1.3959]
[1743207430501,1.05114,1903.6,1903.5,2.4471]
[1743207430804,1.05114,1903.6,1903.5,1.3959]
[1743207431006,1.05114,1903.6,1903.5,2.4471]
[1743207431209,1.05114,1903.6,1903.5,1.3959]
[1743207433708,2.47404,1903.6,1903.5,1.3959]
[1743207435914,2.47404,1903.6,1903.5,2.4471]
[1743207436410,2.47404,1903.6,1903.5,1.3959]
[1743207438810,1.0512,1903.5,1903.4,3.2078]
[1743207439010,2.4029,1903.5,1903.4,5.70525]
[1743207439516,2.4029,1903.5,1903.4,4.654]
[1743207439705,2.4029,1903.5,1903.4,3.2078]
[1743207443720,2.4029,1903.5,1903.4,4.6418]
[1743207444323,2.4029,1903.5,1903.4,1.434]
[1743207444521,2.4029,1903.5,1903.4,4.6418]
[1743207445221,1.3517,1903.5,1903.4,5.69305]
[1743207445418,1.7635,1903.7,1903.4,4.6418]
[1743207445619,1.7635,1903.7,1903.5,2.51845]
[1743207445813,1.7635,1903.7,1903.6,2.2059]
[1743207450445,0.6893,1903.9,1903.6,6.46481]
[1743207450727,1.05107,1903.8,1903.7,2.1588]
[1743207455723,7.83206385,1904.1,1903.7,2.1588]
[1743207455922,7.83206385,1904.1,1903.9,3.2078]
[1743207455923,1.05092,1904.0,1903.9,3.2078]
[1743207456930,1.05092,1904.0,1903.9,4.6235]
[1743207457330,7.83206385,1904.1,1903.9,4.6235]
[1743207457529,8.88293385,1904.1,1904.0,2.1057]
[1743207458128,7.83206385,1904.1,1904.0,2.8423]
[1743207458425,0.7125,1904.6,1904.0,2.8423]
[1743207458621,1.05081,1904.3,1904.2,3.2078]
[1743207461320,1.05081,1904.3,1904.2,4.5912]
[1743207467025,1.05081,1904.3,1904.2,5.64201]
[1743207467227,1.05074,1904.4,1904.2,4.5912]
[1743207467427,1.05074,1904.4,1904.3,2.1689]
[1743207467835,1.0507,1904.4,1904.3,3.21965]
[1743207468034,1.0507,1904.4,1904.3,2.1689]
[1743207469737,1.0507,1904.4,1904.3,1.4585]
[1743207470235,1.05075,1904.3,1904.2,3.2078]
[1743207470534,3.20365,1904.3,1904.2,3.2078]
[1743207470734,3.20365,1904.3,1904.2,4.25861]
[1743207470937,1.05075,1904.3,1904.2,5.65841]
[1743207471238,1.05072,1904.4,1904.3,1.05075]
[1743207471435,1.05072,1904.4,1904.3,3.12225]
[1743207472235,1.4429,1904.5,1904.4,1.0507]
[1743207472435,0.6799,1904.6,1904.4,1.0507]
[1743207472436,1.73051,1904.6,1904.4,3.2279]
[1743207472637,3.16401,1904.6,1904.4,3.2279]
[1743207472834,3.16401,1904.6,1904.5,1.4413]
[1743207473137,4.25827,1904.9,1904.5,1.4413]
[1743207473339,2.48402,1904.8,1904.6,1.05057]
[1743207473633,0.6799,1904.9,1904.8,1.05048]
[1743207473937,1.71344137,1904.9,1904.7,1.7869]
[1743207474136,1.4335,1905.0,1904.8,1.71468137]
[1743207474334,2.46698137,1905.0,1904.8,1.71468137]
[1743207474638,1.05042,1904.9,1904.8,0.66420137]
[1743207475030,1.0504,1905.0,1904.8,1.71467137]
[1743207475231,1.05035,1905.1,1904.9,1.05041]
[1743207475431,1.05039,1905.0,1904.8,3.87200137]
[1743207475638,1.05035,1905.1,1904.9,3.399]
[1743207475943,1.05037,1905.0,1904.9,3.399]
[1743207476129,1.05035,1905.1,1904.9,3.399]
[1743207476531,1.05035,1905.1,1904.9,4.44941]
[1743207476735,1.05035,1905.1,1904.9,3.399]
[1743207477041,1.05037,1905.0,1904.9,3.399]
[1743207478034,1.423,1905.1,1904.9,4.44941]
[1743207478035,2.47333,1905.1,1904.9,4.44941]
[1743207478236,1.423,1905.1,1904.9,4.44941]
[1743207478436,2.47333,1905.1,1904.9,4.44941]
[1743207479143,1.4093,1905.0,1904.9,4.44941]
[1743207481138,3.2078,1905.6,1905.0,2.62593]
[1743207481331,1.4093,1906.1,1905.5,3.2078]
[1743207481542,1.4093,1906.1,1905.8,3.2078]
[1743207481742,1.4093,1906.1,1905.8,4.25772]
[1743207482038,0.03924219,1906.2,1906.0,4.25762]
[1743207482237,0.03924219,1906.2,1906.1,1.04976]
[1743207482442,1.04976,1906.1,1906.0,6.6458]
[1743207482645,1.04982,1906.0,1905.9,3.439]
[1743207482834,2.49942,1906.0,1905.9,3.439]
[1743207483035,1.4496,1906.0,1905.8,7.69772]
[1743207483237,1.4496,1906.0,1905.6,3.90497154]
[1743207483544,2.1333,1906.0,1905.8,3.2078]
[1743207483734,3.18315,1906.0,1905.8,3.2078]
[1743207484741,1.04987,1905.9,1905.8,3.2078]
[1743207485244,1.3921,1905.9,1905.8,3.2078]
[1743207485450,2.44197,1905.9,1905.8,3.2078]
[1743207485950,0.6837,1906.0,1905.8,4.2577]
[1743207486153,1.3921,1906.1,1905.8,3.2078]
[1743207486447,2.44188,1906.1,1905.8,4.25769]
[1743207486644,1.04982,1906.0,1905.8,3.2078]
[1743207487048,1.04987,1905.9,1905.8,3.2078]
[1743207488043,0.7315,1906.0,1905.7,3.466]
[1743207488044,1.04993,1905.8,1905.7,3.466]
[1743207488250,1.04998,1905.7,1905.6,3.21567154]
[1743207488450,2.49448,1905.7,1905.6,3.21567154]
[1743207496241,2.49448,1905.7,1905.6,3.93587154]
[1743207496650,3.2078,1906.0,1905.6,3.93587154]
[1743207496844,0.03924219,1906.2,1905.9,3.2078]
[1743207497060,1.04993,1905.8,1905.7,3.2078]
[1743207497253,1.04993,1905.8,1905.7,4.5729]
[1743207499456,1.3534,1906.0,1905.8,1.0499]
[1743207499654,1.3534,1906.0,1905.9,4.5729]
[1743207499861,2.4643,1906.1,1905.9,5.62277]
[1743207500050,2.4643,1906.1,1906.0,1.4502]
[1743207500051,3.8151,1906.1,1906.0,1.4502]
[1743207500251,0.03924219,1906.2,1906.0,1.4502]
[1743207500552,0.03924219,1906.2,1906.1,7.74156]
[1743207501046,0.03924219,1906.2,1906.1,9.19176]
[1743207503861,0.03924219,1906.2,1906.1,11.69176]
[1743207505153,0.03924219,1906.2,1906.1,8.20776]
[1743207505353,0.03924219,1906.2,1906.1,11.69176]
[1743207511561,0.03924219,1906.2,1906.1,5.70776]
[1743207511761,0.03924219,1906.2,1906.1,9.18176]
[1743207512356,0.03924219,1906.2,1906.1,9.18276]
[1743207514073,0.03924219,1906.2,1906.1,9.18076]
[1743207515477,0.03924219,1906.2,1906.1,9.17776]
[1743207515984,0.03924219,1906.2,1906.1,9.17676]
[1743207517467,0.03924219,1906.2,1906.1,9.17476]
[1743207519575,0.03924219,1906.2,1906.1,9.17076]
[1743207520783,0.03924219,1906.2,1906.1,12.39356]
[1743207522687,0.03924219,1906.2,1906.1,9.89356]
[1743207522883,0.03924219,1906.2,1906.1,9.16776]
[1743207523574,0.03924219,1906.2,1906.1,5.70776]
[1743207523781,1.39984219,1906.2,1906.1,9.17076]
[1743207524987,2.11434219,1906.2,1906.1,9.17076]
[1743207525689,2.11434219,1906.2,1906.1,9.16676]
[1743207526681,2.11434219,1906.2,1906.1,5.70776]
[1743207526985,2.11434219,1906.2,1906.1,9.16576]
[1743207527773,2.11434219,1906.2,1906.1,9.16376]
[1743207528782,2.11434219,1906.2,1906.1,9.16176]
[1743207530186,2.11434219,1906.2,1906.1,3.2078]
[1743207530388,3.16405219,1906.2,1906.1,3.2078]
[1743207530594,2.11434219,1906.2,1906.1,4.25756]
[1743207531282,3.16405219,1906.2,1906.1,4.25756]
[1743207531483,3.16405219,1906.2,1906.1,3.2078]
[1743207532494,2.11434219,1906.2,1906.1,4.25756]
[1743207532792,3.16405219,1906.2,1906.1,4.25756]
[1743207533088,3.60737537,1906.2,1906.1,4.25756]
[1743207533288,2.55766537,1906.2,1906.1,4.25756]
[1743207533890,2.11434219,1906.2,1906.1,4.25756]
[1743207535694,2.11434219,1906.2,1906.1,5.69276]
[1743207536381,1.39984219,1906.2,1906.1,5.69276]
[1743207541591,1.39984219,1906.2,1906.1,9.13676]
[1743207541792,1.39984219,1906.2,1906.1,5.69276]
[1743207541990,1.39984219,1906.2,1906.1,9.13576]
[1743207542389,1.39984219,1906.2,1906.1,9.13476]
[1743207542592,1.39984219,1906.2,1906.1,7.69956]
[1743207542892,1.39984219,1906.2,1906.1,4.25756]
[1743207543188,1.39984219,1906.2,1906.1,6.6498]
[1743207543392,1.39984219,1906.2,1906.1,7.69956]
[1743207547892,2.44955219,1906.2,1906.1,3.2078]
[1743207548197,1.39984219,1906.2,1906.1,4.25756]
[1743207549498,2.44955219,1906.2,1906.1,3.2078]
[1743207549693,1.39984219,1906.2,1906.1,3.2078]
[1743207549999,2.44955219,1906.2,1906.1,4.25756]
[1743207550499,1.39984219,1906.2,1906.1,4.25756]
[1743207551593,1.39984219,1906.2,1906.1,5.65206]
[1743207553302,1.39984219,1906.2,1906.1,3.2078]
[1743207553800,1.39984219,1906.2,1906.1,5.61576]
[1743207567602,0.03924219,1906.2,1906.1,5.61576]
[1743207571914,0.75274219,1906.2,1906.1,9.03076]
[1743207572510,1.04998,1905.7,1905.6,3.21567154]
[1743207573804,1.05011,1905.5,1905.3,4.258]
[1743207574006,2.1613,1905.4,1905.3,4.25799]
[1743207574614,0.7272,1905.9,1905.5,1.05006]
[1743207574811,0.7272,1905.9,1905.5,4.25786]
[1743207574812,2.1613,1905.7,1905.5,4.25786]
[1743207575115,0.7098,1905.7,1905.6,1.3982]
[1743207575309,0.7098,1905.7,1905.6,2.44824]
[1743207575809,1.75978,1905.7,1905.6,1.3982]
[1743207577008,0.7098,1905.7,1905.6,2.44824]
[1743207577216,0.7098,1905.7,1905.6,1.3982]
[1743207577417,1.75978,1905.7,1905.6,1.3982]
[1743207578415,0.7098,1905.7,1905.6,1.3982]
[1743207578719,1.75978,1905.7,1905.6,1.3982]
[1743207581817,1.05004,1905.6,1905.5,3.21567154]
[1743207582111,1.77954,1905.6,1905.5,3.21567154]
[1743207582717,1.77954,1905.6,1905.5,4.60577154]
[1743207583024,1.77954,1905.6,1905.5,3.21567154]
[1743207583316,1.77954,1905.6,1905.5,4.60577154]
[1743207584119,1.77954,1905.6,1905.5,5.65586154]
[1743207584311,1.77954,1905.6,1905.5,4.60577154]
[1743207585718,1.77954,1905.6,1905.5,3.21567154]
[1743207589523,1.77954,1905.6,1905.5,0.00787154]
[1743207591916,1.05026,1905.2,1905.0,1.72143]
[1743207592116,0.6939,1905.1,1905.0,2.42623]
[1743207592315,0.6939,1905.1,1905.0,5.63403]
[1743207592521,1.74421,1905.1,1905.0,5.63403]
[1743207593119,0.6939,1905.1,1905.0,5.63403]
[1743207593623,2.7283,1905.1,1905.0,4.5837]
[1743207593923,2.7283,1905.1,1905.0,5.63407]
[1743207594520,3.409,1905.7,1905.2,1.05026]
[1743207594521,1.05018,1905.4,1905.2,1.05026]
[1743207594726,1.05018,1905.4,1905.3,1.3668]
[1743207595225,1.4049,1905.4,1905.3,1.3668]
[1743207595429,2.45505,1905.4,1905.3,1.3668]
[1743207595628,1.4049,1905.4,1905.3,2.417]
[1743207596019,2.45505,1905.4,1905.3,1.3668]
[1743207596218,1.4049,1905.4,1905.3,2.417]
[1743207597024,0.7058,1905.6,1905.5,1.05009]
[1743207597232,2.1107,1905.6,1905.5,1.05009]
[1743207597526,3.16074,1905.6,1905.4,3.14861]
[1743207597718,3.16074,1905.6,1905.5,1.3374]
[1743207600132,3.16074,1905.6,1905.5,2.38749]
[1743207600629,2.45494,1905.6,1905.5,2.38749]
[1743207601127,1.4049,1905.6,1905.5,1.3374]
[1743207601331,2.45494,1905.6,1905.5,1.3374]
[1743207601527,2.45494,1905.6,1905.5,2.38749]
[1743207601727,1.4049,1905.6,1905.5,2.38749]
[1743207602921,2.45494,1905.6,1905.5,1.3374]
[1743207603539,2.45494,1905.6,1905.5,2.38749]
[1743207603833,1.4049,1905.6,1905.5,2.38749]
[1743207605736,2.45494,1905.6,1905.5,2.38749]
[1743207606033,1.4049,1905.6,1905.5,2.38749]
[1743207606236,1.4049,1905.6,1905.4,7.66493]
[1743207606237,2.45495,1905.6,1905.4,7.66493]
[1743207606434,0.7223,1905.5,1905.4,7.66493]
[1743207606637,2.1503,1905.5,1905.4,7.66493]
[1743207608730,3.20039,1905.5,1905.4,7.66493]
[1743207608930,2.1503,1905.5,1905.4,7.66493]
[1743207610131,3.20039,1905.5,1905.4,6.6148]
[1743207610331,2.1503,1905.5,1905.4,7.66495]
[1743207610532,3.20039,1905.5,1905.4,7.9831]
[1743207611344,3.20039,1905.5,1905.4,4.5761]
[1743207611638,3.20039,1905.5,1905.4,5.62625]
[1743207611639,2.1503,1905.5,1905.4,5.62625]
[1743207612441,1.428,1905.5,1905.4,5.62625]
[1743207612931,2.47809,1905.5,1905.4,5.62625]
[1743207615435,0.6681,1905.7,1905.4,4.5761]
[1743207615641,3.11128,1905.7,1905.6,3.2078]
[1743207616036,3.11128,1905.7,1905.6,4.5992]
[1743207622247,3.11128,1905.7,1905.6,3.2078]
[1743207626739,2.0613,1905.7,1905.6,4.25784]
[1743207626944,2.0613,1905.7,1905.6,5.58794]
[1743207629643,3.11128,1905.7,1905.6,3.2078]
[1743207637257,1.05009,1905.5,1905.4,1.3674]
[1743207637448,1.05009,1905.5,1905.4,4.5752]
[1743207638448,1.74539,1905.5,1905.4,4.5752]
[1743207641757,1.74539,1905.5,1905.4,3.2078]
[1743207644856,9.02836,1905.5,1905.0,4.6007]
[1743207645162,1.05026,1905.2,1905.1,1.3422]
[1743207646051,1.72896,1905.2,1905.1,1.3422]
[1743207652968,3.09586,1905.2,1905.1,1.3422]
[1743207654069,3.09586,1905.2,1904.9,0.00787154]
[1743207654070,1.05037,1905.0,1904.9,0.00787154]
[1743207655371,2.43127,1905.0,1904.9,0.00787154]
[1743207655574,2.43127,1905.0,1904.9,1.38277154]
[1743207656473,1.05037,1905.0,1904.9,1.38277154]
[1743207656675,1.05037,1905.0,1904.9,2.04827154]
[1743207657079,2.43127,1905.0,1904.9,2.04827154]
[1743207660382,2.43127,1905.0,1904.9,0.00787154]
[1743207660686,1.05042,1904.9,1904.8,3.2078]
[1743207660883,1.05053,1904.7,1904.6,1.3332]
[1743207661078,1.05053,1904.7,1904.6,1.31630137]
[1743207661383,1.05053,1904.7,1904.6,4.52410137]
[1743207661782,2.39423,1904.7,1904.6,4.52410137]
[1743207662178,0.71237154,1904.8,1904.6,4.52410137]
[1743207662369,3.10659154,1904.8,1904.7,0.6777]
[1743207663177,2.40209154,1904.8,1904.7,0.6777]
[1743207664278,2.40209154,1904.8,1904.7,2.133]
[1743207665375,1.05839154,1904.8,1904.7,2.133]
[1743207665572,1.05059,1904.6,1904.5,0.68587154]
[1743207665873,1.05059,1904.6,1904.5,1.40217154]
[1743207666186,1.05055,1904.7,1904.5,1.40217154]
[1743207666584,1.05055,1904.7,1904.6,1.05059]
[1743207666777,1.05055,1904.7,1904.6,2.49939]
[1743207666978,1.05055,1904.7,1904.6,1.4488]
[1743207667681,1.05055,1904.7,1904.6,4.6566]
[1743207667884,1.05055,1904.7,1904.6,5.70719]
[1743207668288,0.00787154,1904.8,1904.7,1.05053]
[1743207668489,1.05835154,1904.8,1904.7,2.51673]
[1743207669186,1.05835154,1904.8,1904.7,1.4662]
[1743207669978,1.79555154,1904.8,1904.7,1.4662]
[1743207671490,1.05835154,1904.8,1904.7,1.4662]
[1743207672688,2.50135154,1904.8,1904.7,1.4662]
[1743207673489,2.50135154,1904.8,1904.6,3.2078]
[1743207673490,1.05053,1904.7,1904.6,3.2078]
[1743207673689,3.05533,1904.7,1904.6,4.6236]
[1743207675903,3.05533,1904.7,1904.6,1.4158]
[1743207676403,1.05059,1904.6,1904.5,3.21567154]
[1743207676607,3.10079,1904.6,1904.5,3.21567154]
[1743207677306,3.10079,1904.6,1904.5,0.00787154]
[1743207677307,6.30859,1904.6,1904.5,0.00787154]
[1743207677504,5.258,1904.6,1904.0,3.369]
[1743207677705,1.05086,1904.1,1903.9,2.0694]
[1743207677896,1.05086,1904.1,1904.0,4.5721]
[1743207678300,1.05086,1904.1,1904.0,5.62302]
[1743207678600,2.1082,1904.3,1904.0,5.62302]
[1743207678802,2.43141,1904.2,1904.1,1.3643]
[1743207681902,1.05086,1904.1,1904.0,3.2078]
[1743207682101,3.19796,1904.1,1904.0,4.6154]
[1743207683306,3.19796,1904.1,1904.0,3.2078]
[1743207684706,2.50736,1904.1,1904.0,3.2078]
[1743207685009,2.50736,1904.1,1904.0,3.8984]
[1743207685312,2.50736,1904.1,1904.0,5.2432]
[1743207685907,2.50736,1904.1,1904.0,4.5526]
[1743207688801,2.50736,1904.1,1904.0,3.2078]
[1743207695207,1.05086,1904.2,1904.0,4.25872]
[1743207695412,0.6797,1904.4,1904.1,1.3647]
[1743207695610,1.05079,1904.3,1904.1,3.09984]
[1743207695811,1.05079,1904.3,1904.2,1.3647]
[1743207698007,2.48269,1904.3,1904.2,1.3647]
[1743207699217,1.05086,1904.1,1904.0,3.9051]
[1743207699515,1.05086,1904.1,1904.0,4.562]
[1743207699916,2.48276,1904.1,1904.0,4.562]
[1743207704118,3.16136,1904.1,1904.0,4.562]
[1743207704812,3.16136,1904.1,1904.0,3.2078]
[1743207707125,2.48276,1904.1,1904.0,3.2078]
[1743207707325,2.48276,1904.1,1904.0,4.6157]
[1743207720633,2.48276,1904.1,1904.0,1.4079]
[1743207721233,2.48276,1904.1,1904.0,2.095]
[1743207722536,3.352,1904.4,1904.0,3.1459]
[1743207722734,1.05081,1904.2,1904.1,5.3296]
[1743207723135,2.46191,1904.2,1904.1,5.3296]
[1743207723337,1.4111,1904.2,1904.1,6.38046]
[1743207723542,2.46191,1904.2,1904.1,5.3296]
[1743207724031,2.46191,1904.2,1904.1,4.6554]
[1743207724243,1.05092,1904.0,1903.9,3.21567154]
[1743207724628,1.05092,1904.0,1903.9,4.66327154]
[1743207724829,2.46202,1904.0,1903.9,4.66327154]
[1743207725537,2.46202,1904.0,1903.9,5.71424154]
[1743207728141,1.05091,1904.1,1903.9,4.66327154]
[1743207728342,1.05091,1904.1,1904.0,1.43]
[1743207728642,1.05091,1904.1,1904.0,2.806]
[1743207730346,1.05091,1904.1,1904.0,6.0138]
[1743207732747,2.42414,1904.2,1904.0,6.0138]
[1743207733043,2.42414,1904.2,1904.1,1.4281]
[1743207733239,1.05084,1904.2,1904.1,1.4281]
[1743207733842,1.05086,1904.1,1904.0,3.2078]
[1743207735247,1.05092,1904.0,1903.9,1.43597154]
[1743207735545,1.05092,1904.0,1903.9,4.64377154]
[1743207736442,1.05092,1904.0,1903.9,1.43597154]
[1743207736746,1.05092,1904.0,1903.9,4.64377154]
[1743207737342,1.05092,1904.0,1903.9,5.69474154]
[1743207738043,1.05092,1904.0,1903.9,4.64377154]
[1743207739440,1.4232,1904.3,1903.9,4.64377154]
[1743207739745,3.2078,1904.5,1904.1,3.2078]
[1743207739746,1.05083,1904.2,1904.1,3.2078]
[1743207739947,1.05055,1904.7,1904.5,1.0506]
[1743207740244,1.05836154,1904.8,1904.6,2.39876]
[1743207740450,1.05836154,1904.8,1904.7,4.556]
[1743207741147,1.05836154,1904.8,1904.7,1.3482]
[1743207741545,1.05059,1904.6,1904.5,3.2078]
[1743207741850,1.05059,1904.6,1904.5,4.6463]
[1743207742046,1.05059,1904.6,1904.5,3.2078]
[1743207743146,1.05057,1904.7,1904.5,4.25844]
[1743207743349,1.05057,1904.7,1904.5,6.41364]
[1743207743547,1.05057,1904.7,1904.6,1.4385]
[1743207743750,2.47787,1904.7,1904.6,1.4385]
[1743207750047,1.4273,1904.7,1904.6,2.48909]
[1743207750265,0.00787154,1904.8,1904.7,1.05053]
[1743207750442,0.00787154,1904.8,1904.7,5.67133]
[1743207754847,0.00787154,1904.8,1904.7,9.02733]
[1743207756464,2.48545154,1904.8,1904.7,9.02733]
[1743207756967,1.43497154,1904.8,1904.7,9.02733]
[1743207757366,2.48545154,1904.8,1904.7,9.02733]
[1743207757767,1.43497154,1904.8,1904.7,9.02733]
[1743207759367,0.00787154,1904.8,1904.7,9.02733]
[1743207763068,1.40517154,1904.8,1904.7,9.02733]
[1743207767867,2.45565154,1904.8,1904.7,9.02733]
[1743207768367,1.40517154,1904.8,1904.7,9.02733]
[1743207769074,2.45565154,1904.8,1904.7,9.02733]
[1743207769275,2.45565154,1904.8,1904.7,7.9768]
[1743207769966,2.45565154,1904.8,1904.7,3.2078]
[1743207771062,2.45565154,1904.8,1904.7,4.25833]
[1743207771267,2.45565154,1904.8,1904.7,4.6707]
[1743207771769,2.45565154,1904.8,1904.7,5.72123]